bitfinex/quotes_SOLUSD_20241225
["timestamp","ask_amount","ask_price","bid_price","bid_amount"]
[1735119023178,6.2766,198.64,198.58,0.12549]
[1735119023342,6.2766,198.68,198.6,20.0]
[1735119029667,6.2766,198.68,198.61,0.12549]
[1735119029857,6.2766,198.68,198.61,23.902374]
[1735119030050,6.2766,198.68,198.63,23.776884]
[1735119030250,6.2766,198.68,198.62,0.12549]
[1735119030854,6.2766,198.68,198.63,23.776884]
[1735119031053,6.2766,198.68,198.62,0.12549]
[1735119036490,6.2766,198.68,198.63,23.776884]
[1735119039191,18.29453573,198.7,198.66,20.12549]
[1735119039362,16.46663573,198.7,198.69,23.776884]
[1735119039562,6.4551,198.72,198.69,23.776884]
[1735119041071,1.7953,198.75,198.69,23.776884]
[1735119041565,1.7953,198.75,198.72,20.0]
[1735119041769,1.7953,198.75,198.73,43.776884]
[1735119041969,6.4551,198.77,198.73,23.776884]
[1735119043781,6.4551,198.77,198.71,43.776884]
[1735119044407,6.4551,198.77,198.73,20.0]
[1735119044707,6.4551,198.77,198.71,20.0]
[1735119048924,1.536,198.76,198.69,20.0]
[1735119049248,1.536,198.76,198.67,20.0]
[1735119049381,1.536,198.76,198.65,30.0]
[1735119049707,1.536,198.76,198.66,0.12549]
[1735119050099,1.536,198.76,198.66,0.88030859]
[1735119050303,1.536,198.76,198.67,23.776884]
[1735119050684,1.536,198.76,198.7,20.0]
[1735119056322,1.536,198.76,198.63,30.0]
[1735119056754,1.5216,198.73,198.61,6.51340391]
[1735119056911,7.894,198.73,198.58,30.0]
[1735119057230,32.5786,198.75,198.55,30.0]
[1735119057231,6.3724,198.71,198.55,30.0]
[1735119057425,1.5216,198.7,198.53,49.86113346]
[1735119057608,6.3724,198.69,198.55,30.0]
[1735119057798,6.3724,198.69,198.55,30.75519797]
[1735119058196,6.3724,198.69,198.58,0.12549]
[1735119058630,6.3724,198.69,198.58,23.902374]
[1735119058925,6.3724,198.69,198.58,23.776884]
[1735119059128,6.3724,198.69,198.58,20.0]
[1735119059492,6.3724,198.69,198.54,0.75512139]
[1735119059694,6.2547,198.67,198.53,6.51340391]
[1735119060006,1.5984,198.66,198.5,0.75537492]
[1735119060212,1.5984,198.66,198.51,30.0]
[1735119060397,1.5984,198.66,198.52,0.7553026]
[1735119061205,1.5984,198.66,198.53,30.12549]
[1735119061536,1.5984,198.66,198.56,20.0]
[1735119062033,1.5984,198.66,198.57,23.902374]
[1735119063313,1.5984,198.66,198.6,20.0]
[1735119065321,1.5984,198.66,198.56,20.0]
[1735119066725,1.5984,198.66,198.54,23.902374]
[1735119067235,1.5984,198.66,198.55,0.75526836]
[1735119067440,1.5984,198.66,198.56,23.776884]
[1735119068441,1.5984,198.66,198.55,23.776884]
[1735119068624,1.5984,198.66,198.56,0.75519322]
[1735119070039,1.5984,198.66,198.57,23.776884]
[1735119070716,1.5984,198.66,198.59,23.902374]
[1735119070921,1.5984,198.66,198.62,20.0]
[1735119071226,1.5984,198.66,198.58,20.0]
[1735119072212,1.5984,198.66,198.6,20.0]
[1735119073149,1.5984,198.66,198.61,23.776884]
[1735119073335,1.5984,198.66,198.61,24.53196053]
[1735119073725,1.5984,198.66,198.64,20.0]
[1735119074344,1.5984,198.66,198.63,20.0]
[1735119075213,1.5984,198.66,198.54,13.34659829]
[1735119075751,1.5984,198.66,198.58,20.0]
[1735119077130,1.5984,198.66,198.59,23.776884]
[1735119078651,1.5984,198.66,198.6,0.75508493]
[1735119078849,1.5984,198.66,198.61,23.776884]
[1735119081541,1.53775913,198.66,198.61,23.776884]
[1735119086053,6.4612,198.65,198.61,23.776884]
[1735119086236,6.4612,198.65,198.6,23.776884]
[1735119086439,6.4612,198.65,198.51,0.12549]
[1735119086640,6.4612,198.65,198.51,23.902374]
[1735119087257,6.4612,198.65,198.54,20.0]
[1735119089056,6.4612,198.65,198.56,20.0]
[1735119091456,6.4612,198.65,198.54,20.0]
[1735119093838,6.4612,198.65,198.56,20.0]
[1735119094035,6.4612,198.65,198.55,23.776884]
[1735119095045,6.4612,198.65,198.53,23.776884]
[1735119095751,6.4612,198.65,198.43,19.9556828]
[1735119095752,6.543,198.62,198.47,0.75539695]
[1735119095957,12.5855,198.64,198.46,12.5969]
[1735119095958,6.543,198.6,198.46,12.5969]
[1735119096142,6.543,198.6,198.47,30.0]
[1735119096744,6.543,198.6,198.46,0.75554602]
[1735119097339,6.543,198.6,198.51,20.0]
[1735119102149,1.545,198.59,198.51,20.0]
[1735119102347,1.545,198.57,198.43,12.5988]
[1735119104665,1.545,198.57,198.52,20.0]
[1735119105039,1.545,198.57,198.53,20.0]
[1735119106959,1.545,198.57,198.52,20.0]
[1735119107554,1.545,198.57,198.53,20.0]
[1735119111986,1.545,198.57,198.51,20.0]
[1735119113089,1.545,198.57,198.52,20.0]
[1735119113791,1.545,198.57,198.51,20.0]
[1735119114086,1.545,198.57,198.52,23.776884]
[1735119114386,1.545,198.57,198.48,18.0933]
[1735119120587,14.135,198.57,198.48,18.0933]
[1735119123396,0.12549,198.53,198.48,18.0933]
[1735119123688,6.4669,198.5,198.48,8.0935]
[1735119124069,20.0,198.47,198.41,8.0]
[1735119124331,1.5525,198.46,198.41,8.0]
[1735119124501,6.4669,198.45,198.41,8.0]
[1735119136089,6.6426,198.5,198.41,8.0]
[1735119140404,12.595,198.49,198.41,8.0]
[1735119145307,12.5963,198.47,198.41,8.0]
[1735119147309,0.12549,198.44,198.41,8.0]
[1735119147624,6.6426,198.43,198.41,8.0]
[1735119160426,1.62989,198.44,198.41,8.0]
[1735119160731,21.62989,198.44,198.41,8.0]
[1735119162826,20.0,198.44,198.41,8.0]
[1735119163129,6.6278,198.47,198.41,8.0]
[1735119164017,0.12549,198.46,198.41,8.0]
[1735119164198,12.72299,198.46,198.41,8.0]
[1735119167916,12.72299,198.46,198.27,7.7488]
[1735119167917,20.12549,198.41,198.27,7.7488]
[1735119168229,0.12549,198.36,198.27,1.5946]
[1735119168432,20.12549,198.36,198.27,1.5946]
[1735119168733,20.0,198.32,198.22,6.1542]
[1735119169316,0.12549,198.31,198.22,6.1542]
[1735119174044,9.62638253,198.36,198.22,6.1542]
[1735119174227,6.1542,198.36,198.22,6.1542]
[1735119174919,0.12549,198.35,198.22,6.1542]
[1735119175121,6.1542,198.36,198.25,20.0]
[1735119175731,6.1542,198.36,198.26,21.6336]
[1735119175930,12.6007,198.41,198.26,21.6336]
[1735119176231,12.6007,198.41,198.27,20.0]
[1735119176431,0.10048468,198.42,198.32,1.6336]
[1735119177643,0.10048468,198.42,198.33,20.75612035]
[1735119178143,0.10048468,198.42,198.34,6.6345]
[1735119178347,0.10048468,198.42,198.35,0.75602515]
[1735119178516,0.10048468,198.42,198.34,7.39053812]
[1735119178841,0.10048468,198.42,198.34,6.6345]
[1735119181140,0.22597468,198.42,198.34,6.6345]
[1735119183546,0.22597468,198.42,198.32,1.6336]
[1735119187324,0.12549,198.42,198.32,1.6336]
[1735119188047,0.11075125,198.33,198.32,1.6336]
[1735119191938,0.11075125,198.33,198.27,1.6214]
[1735119195862,0.23624125,198.33,198.22,1.6653]
[1735119196026,12.6058,198.32,198.22,1.6653]
[1735119199066,0.11075125,198.33,198.22,2.42191437]
[1735119199393,0.11075125,198.33,198.24,20.0]
[1735119201666,0.11075125,198.33,198.22,1.6653]
[1735119207471,13.0004769,198.33,198.22,1.6653]
[1735119208067,0.10088512,198.23,198.22,1.6653]
[1735119208275,0.10088512,198.23,198.22,2.42184741]
[1735119209144,0.10088512,198.23,198.22,1.6653]
[1735119209344,0.10088512,198.23,198.17,1.5483]
[1735119212957,0.10088512,198.23,198.13,1.5483]
[1735119213654,20.0,198.22,198.13,1.5483]
[1735119215663,20.0,198.22,198.08,0.75694949]
[1735119215664,20.0,198.2,198.08,2.30524949]
[1735119216583,20.0,198.2,198.09,23.776884]
[1735119217179,12.71308512,198.23,198.09,23.776884]
[1735119217389,0.12549,198.22,198.09,23.776884]
[1735119217776,23.902374,198.22,198.08,2.30524949]
[1735119217983,12.6128,198.21,198.1,20.0]
[1735119219394,6.3865,198.19,198.08,1.5483]
[1735119219795,12.6147,198.18,198.08,1.5483]
[1735119221084,6.3865,198.19,198.08,1.5483]
[1735119227993,0.09164005,198.09,198.08,1.5483]
[1735119237112,0.09164005,198.09,198.07,0.75712532]
[1735119237315,0.09164005,198.09,198.07,20.75712532]
[1735119237613,0.09164005,198.09,198.08,20.0]
[1735119237979,0.09164005,198.09,198.08,20.75702256]
[1735119238814,0.09164005,198.09,198.08,44.53390656]
[1735119241398,0.09164005,198.09,198.08,0.75702256]
[1735119241603,0.09164005,198.09,198.05,0.75709823]
[1735119241933,0.09164005,198.09,198.03,0.12549]
[1735119242625,0.09164005,198.09,198.02,0.75721498]
[1735119242786,0.09164005,198.09,198.0,0.75721241]
[1735119243298,0.09164005,198.09,197.99,1.6321]
[1735119243698,0.09164005,198.09,197.98,0.75737974]
[1735119244884,0.09164005,198.09,197.99,20.0]
[1735119245295,0.09164005,198.09,198.0,43.776884]
[1735119245502,0.09164005,198.09,198.0,44.53423819]
[1735119246913,0.09164005,198.09,198.0,43.776884]
[1735119247300,18.38046233,198.11,198.0,20.0]
[1735119247301,18.27237946,198.11,198.0,20.0]
[1735119248022,0.09788761,198.01,198.0,20.0]
[1735119248728,0.09788761,198.01,197.99,20.0]
[1735119249029,0.09788761,198.01,197.97,0.75745821]
[1735119249206,0.09788761,198.01,197.96,23.776884]
[1735119249408,0.09788761,198.01,197.97,0.75751466]
[1735119251527,0.09788761,198.01,197.95,20.0]
[1735119252236,0.09788761,198.01,197.93,20.0]
[1735119253413,0.09788761,198.01,197.94,44.53450636]
[1735119254410,0.09788761,198.01,197.96,23.776884]
[1735119254612,0.09788761,198.01,198.0,20.0]
[1735119255329,0.09788761,198.01,197.99,20.0]
[1735119255508,0.09788761,198.01,198.0,20.0]
[1735119255707,0.09788761,198.01,197.99,20.0]
[1735119266350,0.09788761,198.01,197.96,23.776884]
[1735119267317,6.5708,198.08,197.96,23.776884]
[1735119268138,0.10435824,197.97,197.96,23.776884]
[1735119269954,0.10435824,197.97,197.95,20.0]
[1735119271238,0.10435824,197.97,197.96,43.776884]
[1735119271549,0.10435824,197.97,197.96,44.53447191]
[1735119275230,0.10435824,197.97,197.96,0.75758791]
[1735119277515,0.10435824,197.97,197.96,44.53447191]
[1735119280455,0.10435824,197.97,197.95,20.0]
[1735119280824,0.10435824,197.97,197.96,0.75758722]
[1735119287253,1.26513533,216.02,197.96,0.75758722]
[1735119287552,7.88132347,198.15,197.95,20.0]
[1735119288053,0.10479103,197.97,197.95,20.0]
[1735119289257,0.10479103,197.97,197.96,0.75754233]
[1735119290547,0.10479103,197.97,197.96,44.53442633]
[1735119291037,0.10479103,197.97,197.96,44.65991633]
[1735119291234,0.10479103,197.97,197.96,74.65991633]
[1735119295658,0.10479103,197.97,197.96,44.65991633]
[1735119296944,0.10479103,197.97,197.96,44.53442633]
[1735119299354,0.10479103,197.97,197.96,0.75754233]
[1735119299658,0.10479103,197.97,197.95,0.75746251]
[1735119300164,0.10479103,197.97,197.93,0.75754486]
[1735119301155,0.10479103,197.97,197.92,0.75764766]
[1735119301657,0.10479103,197.97,197.91,20.0]
[1735119301855,0.10479103,197.97,197.92,0.75768423]
[1735119302345,0.10479103,197.97,197.92,20.75768423]
[1735119304367,0.10479103,197.97,197.92,0.75768423]
[1735119304864,0.10479103,197.97,197.91,0.75770971]
[1735119306160,0.10479103,197.97,197.92,43.776884]
[1735119306356,0.10479103,197.97,197.94,43.776884]
[1735119306558,0.10479103,197.97,197.95,0.75753722]
[1735119306866,0.10479103,197.97,197.95,20.75753722]
[1735119307365,6.0212,197.99,197.95,20.75753722]
[1735119307962,0.09442901,197.96,197.95,20.75753722]
[1735119311835,0.09442901,197.96,197.95,44.65991122]
[1735119312163,3.07e-06,197.97,197.96,43.902374]
[1735119312667,2.159e-05,197.98,197.97,30.12549]
[1735119312965,2.159e-05,197.98,197.97,54.65959774]
[1735119313177,2.159e-05,197.98,197.97,24.65959774]
[1735119313342,2.159e-05,197.98,197.97,24.53410774]
[1735119313975,2.159e-05,197.98,197.97,20.0]
[1735119314846,2.159e-05,197.98,197.96,20.75752932]
[1735119316660,1.5181,197.97,197.9,7.84960632]
[1735119317182,1.5181,197.97,197.87,0.7578453]
[1735119317776,1.5181,197.97,197.88,20.0]
[1735119318173,20.0,197.87,197.8,18.67542528]
[1735119318477,23.776884,197.77,197.75,43.25352814]
[1735119318662,23.776884,197.75,197.74,26.93045643]
[1735119318869,23.902374,197.75,197.74,26.93045643]
[1735119319077,0.12549,197.74,197.56,2.1431082]
[1735119319256,0.12549,197.71,197.56,2.1431082]
[1735119319573,20.0,197.67,197.56,2.1431082]
[1735119319754,0.88333872,197.66,197.56,2.1431082]
[1735119320163,20.0,197.62,197.47,30.0]
[1735119320477,0.75784872,197.61,197.45,30.0]
[1735119320678,20.75784872,197.61,197.45,0.75930998]
[1735119320975,10.44565939,197.6,197.41,15.91748426]
[1735119321174,125.7469801,197.48,197.42,23.776884]
[1735119321372,125.7469801,197.48,197.43,0.38136299]
[1735119321562,10.44565939,197.47,197.43,20.38136299]
[1735119321762,10.44565939,197.47,197.38,122.64230926]
[1735119321961,10.44565939,197.47,197.39,30.0]
[1735119322164,7.83319245,197.45,197.39,30.0]
[1735119322466,7.83319245,197.45,197.41,12.6634]
[1735119322787,7.83319245,197.45,197.42,0.12549]
[1735119322955,125.7469801,197.48,197.42,0.12549]
[1735119323360,125.7469801,197.48,197.42,23.776884]
[1735119323791,125.7469801,197.48,197.46,0.12549]
[1735119324488,125.7469801,197.48,197.45,20.0]
[1735119324966,125.7469801,197.48,197.46,0.12549]
[1735119325168,125.7469801,197.48,197.46,23.902374]
[1735119325777,120.8025801,197.48,197.47,36.562474]
[1735119326068,109.9890801,197.48,197.47,36.562474]
[1735119327885,110.08756633,197.48,197.47,36.562474]
[1735119328094,110.08756633,197.48,197.47,0.12549]
[1735119331203,110.08756633,197.48,197.42,12.663]
[1735119331711,110.08756633,197.48,197.43,0.12549]
[1735119332187,110.08756633,197.48,197.37,30.32]
[1735119332393,110.08756633,197.48,197.41,20.0]
[1735119332594,110.08756633,197.48,197.38,12.6659]
[1735119333398,110.08756633,197.48,197.39,0.12549]
[1735119334391,110.08756633,197.48,197.33,1.99764484]
[1735119334693,110.08756633,197.48,197.32,0.12549]
[1735119335088,110.08756633,197.48,197.31,42.6704]
[1735119335581,110.08756633,197.48,197.34,20.0]
[1735119335895,110.08756633,197.48,197.37,0.12549]
[1735119336281,110.08756633,197.48,197.36,20.0]
[1735119336282,0.94951279,197.47,197.33,12.6691]
[1735119336595,110.08756633,197.48,197.34,0.12549]
[1735119337182,0.94958373,197.47,197.34,0.12549]
[1735119337692,0.94958373,197.47,197.36,20.0]
[1735119337888,110.08756633,197.48,197.36,12.6667]
[1735119338084,110.08756633,197.48,197.41,0.12549]
[1735119338273,110.08756633,197.48,197.45,0.12549]
[1735119339297,110.08756633,197.48,197.45,20.12549]
[1735119340173,110.08756633,197.48,197.44,20.0]
[1735119341193,110.08756633,197.48,197.41,0.12549]
[1735119342509,110.08756633,197.48,197.41,12.78909]
[1735119343194,110.08756633,197.48,197.46,0.12549]
[1735119343399,110.08756633,197.48,197.46,20.12549]
[1735119347080,110.08756633,197.48,197.46,32.78609]
[1735119347294,109.9890801,197.48,197.47,23.902374]
[1735119347900,110.09749178,197.48,197.47,23.902374]
[1735119348223,9.53924855,197.53,197.49,20.0]
[1735119348391,0.10542266,197.56,197.55,0.12549]
[1735119348579,0.10319358,197.57,197.55,0.12549]
[1735119348901,0.10319358,197.57,197.55,23.902374]
[1735119349102,0.10319358,197.57,197.56,36.431184]
[1735119349402,0.10319358,197.57,197.54,20.0]
[1735119349699,0.10319358,197.57,197.55,20.0]
[1735119350003,0.10319358,197.57,197.56,0.12549]
[1735119352102,20.0,197.7,197.56,0.12549]
[1735119352300,23.776884,197.68,197.56,0.12549]
[1735119352501,0.94875653,197.67,197.56,0.12549]
[1735119355089,7.35245653,197.67,197.56,0.12549]
[1735119355999,6.4037,197.67,197.56,0.12549]
[1735119356601,6.4037,197.67,197.58,0.12549]
[1735119359916,0.9486321,197.66,197.54,20.0]
[1735119360093,0.9486321,197.66,197.56,20.0]
[1735119360809,6.4037,197.67,197.57,0.12549]
[1735119362429,20.0,197.7,197.59,20.0]
[1735119362612,20.94851007,197.7,197.59,20.0]
[1735119364123,20.0,197.7,197.6,0.12549]
[1735119365423,0.94848176,197.69,197.59,20.0]
[1735119366124,20.94864119,197.7,197.59,20.0]
[1735119366508,20.94864119,197.7,197.6,0.12549]
[1735119366711,20.0,197.7,197.6,0.12549]
[1735119367909,20.0,197.7,197.56,12.654]
[1735119367910,0.09489071,197.61,197.56,12.654]
[1735119368439,0.09489071,197.61,197.57,0.12549]
[1735119368934,0.09489071,197.61,197.59,20.0]
[1735119369115,0.10764718,197.62,197.59,20.0]
[1735119369116,0.11027596,197.64,197.59,20.0]
[1735119369510,0.11027596,197.64,197.59,12.77769]
[1735119370934,0.11027596,197.64,197.61,0.12549]
[1735119371428,0.11027596,197.64,197.6,0.12549]
[1735119371638,0.11027596,197.64,197.63,20.12549]
[1735119372133,0.11027596,197.64,197.63,43.902374]
[1735119372933,0.11027596,197.64,197.63,48.90519725]
[1735119373951,7.596e-05,197.64,197.63,48.90519725]
[1735119374112,7.596e-05,197.64,197.63,55.16469725]
[1735119374313,7.596e-05,197.64,197.58,1.519]
[1735119374509,7.596e-05,197.64,197.6,20.0]
[1735119374825,7.596e-05,197.64,197.61,0.12549]
[1735119376337,7.596e-05,197.64,197.58,1.519]
[1735119377331,7.596e-05,197.64,197.59,0.12549]
[1735119378418,7.596e-05,197.64,197.6,20.0]
[1735119378619,7.596e-05,197.64,197.61,0.12549]
[1735119382435,7.596e-05,197.64,197.53,14.2419]
[1735119382639,7.596e-05,197.64,197.56,20.0]
[1735119383138,7.596e-05,197.64,197.57,0.12549]
[1735119385825,7.596e-05,197.64,197.56,20.0]
[1735119386027,7.596e-05,197.64,197.59,0.12549]
[1735119386220,7.596e-05,197.64,197.58,0.12549]
[1735119386744,7.596e-05,197.64,197.6,20.0]
[1735119386940,7.596e-05,197.64,197.61,23.902374]
[1735119387254,1.576,197.7,197.61,23.902374]
[1735119387847,0.10988386,197.62,197.61,23.902374]
[1735119389342,0.11116207,197.64,197.63,0.12549]
[1735119391044,0.11116207,197.64,197.63,23.902374]
[1735119398843,0.11116207,197.64,197.63,25.408074]
[1735119399425,0.11116207,197.64,197.63,0.12549]
[1735119401148,0.11116207,197.64,197.62,20.0]
[1735119401858,0.11116207,197.64,197.63,0.12549]
[1735119407272,13.58936152,197.77,197.63,0.12549]
[1735119407555,20.94842346,197.74,197.63,0.12549]
[1735119407751,0.10790382,197.64,197.63,0.12549]
[1735119408255,0.10790382,197.64,197.62,20.0]
[1735119408434,0.10790382,197.64,197.6,15.89321496]
[1735119408863,0.10790382,197.64,197.59,0.12549]
[1735119409581,0.10790382,197.64,197.58,0.12549]
[1735119411943,0.10790382,197.64,197.57,15.89321496]
[1735119413165,0.10790382,197.64,197.55,0.12549]
[1735119414758,0.10790382,197.64,197.54,15.89321496]
[1735119415461,0.10790382,197.64,197.53,47.46409452]
[1735119416643,0.10790382,197.64,197.53,0.12549]
[1735119416849,0.10790382,197.64,197.54,20.0]
[1735119418270,0.10790382,197.64,197.55,0.12549]
[1735119419659,0.10790382,197.64,197.55,20.12549]
[1735119420041,0.10790382,197.64,197.58,0.12549]
[1735119420246,0.10790382,197.64,197.6,0.12549]
[1735119422754,0.10790382,197.64,197.62,0.12549]
[1735119425670,0.10790382,197.64,197.63,23.902374]
[1735119425864,0.10790382,197.64,197.63,0.12549]
[1735119427302,0.25,216.11,197.66,0.12549]
[1735119427453,32.95690444,197.89,197.66,0.12549]
[1735119427893,0.09366519,197.67,197.66,0.12549]
[1735119429883,0.09366519,197.67,197.65,20.0]
[1735119430174,0.09366519,197.67,197.63,0.12549]
[1735119431575,0.09366519,197.67,197.63,20.0]
[1735119432680,0.09366519,197.67,197.59,15.89321496]
[1735119433393,0.09366519,197.67,197.6,36.554174]
[1735119434095,0.09366519,197.67,197.6,61.857774]
[1735119434289,0.09366519,197.67,197.62,23.902374]
[1735119434758,0.09366519,197.67,197.65,20.0]
[1735119435295,0.09366519,197.67,197.66,20.0]
[1735119436870,0.09366519,197.67,197.63,12.6493]
[1735119437065,0.09366519,197.67,197.61,47.46409452]
[1735119437772,0.09366519,197.67,197.6,19.39409131]
[1735119438192,0.09366519,197.67,197.63,20.0]
[1735119438566,0.09366519,197.67,197.61,7.93911435]
[1735119439172,1.6209,197.66,197.61,7.93911435]
[1735119439406,2.56959551,197.66,197.61,7.93911435]
[1735119439699,1.6209,197.66,197.61,7.93911435]
[1735119439905,1.6209,197.66,197.57,7.93911435]
[1735119440581,7.42103692,197.65,197.57,7.93911435]
[1735119441091,7.42103692,197.65,197.56,7.93911435]
[1735119442973,7.42103692,197.65,197.51,7.93911435]
[1735119442974,23.902374,197.64,197.51,7.93911435]
[1735119443168,20.0,197.61,197.51,7.93911435]
[1735119443379,0.94903337,197.6,197.49,12.6586]
[1735119444089,0.94903337,197.6,197.48,39.50999391]
[1735119444292,20.94903337,197.6,197.48,39.50999391]
[1735119444492,20.94903337,197.6,197.48,7.93911435]
[1735119445405,20.94903337,197.6,197.47,3.49932762]
[1735119445406,20.94903337,197.6,197.47,0.12549]
[1735119445585,20.94903337,197.6,197.47,23.902374]
[1735119446105,20.94903337,197.6,197.47,31.84148835]
[1735119447802,0.0923911,197.48,197.47,31.84148835]
[1735119448498,0.10060791,197.5,197.47,31.84148835]
[1735119448499,0.10060791,197.5,197.47,23.902374]
[1735119449020,0.10060791,197.5,197.49,20.0]
[1735119454414,0.10060791,197.5,197.48,20.0]
[1735119455295,0.10060791,197.5,197.45,12.6608]
[1735119459110,0.10110826,197.51,197.45,12.6608]
[1735119460109,0.10110826,197.51,197.45,20.0]
[1735119462201,0.10110826,197.51,197.44,20.0]
[1735119462615,0.10110826,197.51,197.43,20.0]
[1735119463087,0.10110826,197.51,197.38,7.93911435]
[1735119463593,0.10110826,197.51,197.4,0.12549]
[1735119464605,0.10110826,197.51,197.43,23.902374]
[1735119464994,0.10110826,197.51,197.45,23.902374]
[1735119466901,0.10110826,197.51,197.43,20.0]
[1735119467298,0.94916205,197.56,197.44,0.12549]
[1735119467791,0.1070296,197.45,197.43,0.12549]
[1735119468618,0.1070296,197.45,197.43,12.78819]
[1735119472423,0.11093369,197.46,197.43,12.78819]
[1735119472725,0.11093369,197.46,197.45,20.12549]
[1735119473616,0.11093369,197.46,197.45,20.0]
[1735119474420,0.11093369,197.46,197.45,20.12549]
[1735119480733,6.898e-05,197.47,197.46,32.78619]
[1735119480925,6.898e-05,197.47,197.46,12.78619]
[1735119482138,0.07960116,197.48,197.46,12.78619]
[1735119486416,0.07960116,197.48,197.47,23.902374]
[1735119487341,13.59908354,197.63,197.47,23.902374]
[1735119488040,0.09790093,197.48,197.47,23.902374]
[1735119488844,0.09790093,197.48,197.44,7.93911435]
[1735119493747,0.09790093,197.48,197.45,7.93911435]
[1735119494124,0.09790093,197.48,197.46,23.776884]
[1735119494745,0.09837372,197.49,197.47,7.93911435]
[1735119496645,0.09837372,197.49,197.46,7.93911435]
[1735119498624,0.09837372,197.49,197.47,23.776884]
[1735119498921,0.09837372,197.49,197.48,7.93911435]
[1735119499451,0.09837372,197.49,197.48,3.51117433]
[1735119501128,0.09837372,197.49,197.48,7.96225305]
[1735119502555,0.09837372,197.49,197.48,31.86462705]
[1735119503027,0.09837372,197.49,197.48,27.41354833]
[1735119504966,0.09837372,197.49,197.48,58.98442789]
[1735119507378,10.0,217.0,197.49,23.776884]
[1735119507552,20.0,197.81,197.49,23.776884]
[1735119507749,20.0,197.81,197.5,0.12549]
[1735119507750,12.10708282,197.61,197.5,0.12549]
[1735119507948,0.10247633,197.51,197.5,0.12549]
[1735119508138,0.10247633,197.51,197.5,43.33864638]
[1735119508546,0.09909359,197.52,197.5,43.33864638]
[1735119508547,0.09909359,197.52,197.51,23.902374]
[1735119509241,0.09909359,197.52,197.5,3.51117433]
[1735119509462,0.09909359,197.52,197.51,19.43125456]
[1735119510073,0.09909359,197.52,197.5,19.43125456]
[1735119510771,0.09909359,197.52,197.51,7.95949011]
[1735119511560,0.09909359,197.52,197.51,23.776884]
[1735119512000,0.09909359,197.52,197.51,3.50987868]
[1735119512289,0.09909359,197.52,197.51,27.28676268]
[1735119516891,0.09909359,197.52,197.51,31.73343526]
[1735119517191,0.09909359,197.52,197.51,31.85892526]
[1735119517686,0.09909359,197.52,197.51,23.902374]
[1735119518482,0.09909359,197.52,197.51,27.41082454]
[1735119519185,0.09909359,197.52,197.51,43.33090477]
[1735119524218,0.09909359,197.52,197.51,43.20541477]
[1735119524401,0.09909359,197.52,197.51,19.42853077]
[1735119525101,0.09909359,197.52,197.5,0.12549]
[1735119525608,0.09909359,197.52,197.5,12.78369]
[1735119525813,0.10281243,197.53,197.51,7.95382097]
[1735119526018,0.10281243,197.53,197.52,23.902374]
[1735119526803,0.10281243,197.53,197.52,31.85619497]
[1735119527314,0.94882342,197.63,197.52,31.85619497]
[1735119527818,0.11048202,197.53,197.52,31.85619497]
[1735119532142,8.0517,197.69,197.57,0.12549]
[1735119532433,8.0517,197.69,197.61,23.776884]
[1735119533209,1.6262,197.69,197.62,0.12549]
[1735119534308,14.43921307,197.73,197.62,0.12549]
[1735119535630,2.57455331,197.73,197.62,0.12549]
[1735119535924,1.6262,197.73,197.62,0.12549]
[1735119536224,2.57455732,197.73,197.62,0.12549]
[1735119536609,1.6262,197.73,197.62,0.12549]
[1735119537319,0.94833583,197.72,197.62,0.12549]
[1735119537509,2.57463526,197.73,197.62,0.12549]
[1735119537717,1.6262,197.73,197.62,0.12549]
[1735119538699,1.6262,197.73,197.64,23.902374]
[1735119538898,1.6262,197.78,197.64,23.902374]
[1735119539624,1.6262,197.78,197.68,23.902374]
[1735119540531,0.94811179,197.81,197.69,14.2646]
[1735119540742,18.10931864,197.83,197.7,23.902374]
[1735119541434,18.10931864,197.83,197.7,29.979174]
[1735119541730,17.16128049,197.83,197.72,23.902374]
[1735119542931,0.94785612,197.82,197.72,23.902374]
[1735119543142,0.94785612,197.82,197.7,6.0768]
[1735119543432,0.94785612,197.82,197.71,23.776884]
[1735119545516,17.16128049,197.83,197.72,0.12549]